[Event "1st Jeddah Young Masters 2024"]
[Site "Jeddah"]
[Date "2024.01.27"]
[Round "5.5"]
[White "Oro, Faustino"]
[Black "Pranav Vijay"]
[Result "0-1"]
[ECO "C32"]
[WhiteElo "2357"]
[BlackElo "2252"]
[Annotator "RC"]
[PlyCount "168"]
[EventDate "2024.01.24"]
[EventType "tourn"]
[SourceTitle "playchess.com"]
[Source "ChessBase"]
[SourceQuality "1"]
[TimeControl "5400+30"]

1. e4 {[%emt 0:00:02]} e5 {[%emt 0:00:08]} 2. f4 {[%emt 0:00:06]} d5 {[%emt 0:03:37]} 3. exd5 {[%emt 0:00:10]} e4 {[%emt 0:02:36]} 4. Nc3 {[%emt 0:05:54]} Nf6 {[%emt 0:02:31]} 5. d3 {[%emt 0:06:01]} Bb4 {[%emt 0:08:31]} 6. Bd2 {[%emt 0:04:58]} e3 {[%emt 0:11:54]} 7. Bxe3 {[%emt 0:01:43]} O-O {[%emt 0:00:16]} 8. Be2 {[%emt 0:10:06]} Nxd5 {[%emt 0:30:53]} 9. Bd2 {[%emt 0:01:58]} Bxc3 {[%emt 0:04:17]} 10. bxc3 {[%emt 0:05:30]} Qf6 {[%emt 0:00:02]} 11. c4 {[%emt 0:05:00]} Nxf4 {[%emt 0:00:58]} 12. Bxf4 {[%emt 0:00:14]} Qxf4 {[%emt 0:00:02]} 13. Nf3 {[%emt 0:01:24]} c5 {[%emt 0:04:58]} 14. Qd2 {[%emt 0:03:56]} Qd6 {[%emt 0:00:12]} 15. O-O {[%emt 0:00:51]} Nc6 {[%emt 0:00:30]} 16. Ng5 {[%emt 0:08:10]} Nd4 {[%emt 0:04:45]} 17. Bh5 {[%emt 0:07:45]} f6 {[%emt 0:08:06]} 18. Rae1 {[%emt 0:05:39]} Bf5 {[%emt 0:00:19]} 19. Ne4 {[%emt 0:05:06]} Bxe4 {[%emt 0:00:20]} 20. Rxe4 {[%emt 0:00:07]} Rad8 {[%emt 0:01:25]} 21. Rfe1 {[%emt 0:04:27]} Nc6 {[%emt 0:01:22]} 22. Bf3 {[%emt 0:05:51]} Ne5 {[%emt 0:00:16]} 23. Rf4 {[%emt 0:02:33]} Nxf3+ {[%emt 0:11:28]} 24. Rxf3 {[%emt 0:00:07]} Rfe8 {[%emt 0:01:16]} 25. Rfe3 {[%emt 0:01:35]} Rxe3 {[%emt 0:00:38]} 26. Qxe3 {[%emt 0:00:39]} Kf8 {[%emt 0:00:33]} 27. Qf3 {[%emt 0:00:53]} b6 {[%emt 0:00:55]} 28. Qh5 {[%emt 0:01:25]} Qd4+ {[%emt 0:01:03]} 29. Kf1 {[%emt 0:00:31]} Qf4+ {[%emt 0:00:22]} 30. Kg1 {[%emt 0:00:19]} Qd2 {[%emt 0:00:37]} 31. Re2 {[%emt 0:01:18]} Qc1+ {[%emt 0:00:02]} 32. Kf2 {[%emt 0:00:10]} Qf4+ {[%emt 0:00:15]} 33. Kg1 {[%emt 0:00:12]} Qc1+ {[%emt 0:00:58]} 34. Kf2 {[%emt 0:00:14]} Qf4+ {[%emt 0:00:35]} 35. Kg1 {[%emt 0:00:05]} Qd4+ {[%emt 0:00:20]} 36. Kf1 {[%emt 0:00:17]} h6 {[%emt 0:00:36]} 37. Qf5 {[%emt 0:03:25]} Qd7 {[%emt 0:00:42]} 38. Qf3 {[%emt 0:02:00]} Qa4 {[%emt 0:00:29]} 39. Qb7 {[%emt 0:01:19]} Qd7 {[%emt 0:00:09]} 40. Qf3 {[%emt 0:00:02]} a6 {[%emt 0:00:57]} 41. Qh5 {[%emt 0:01:47]} Qa4 {[%emt 0:00:31]} 42. Qf5 {[%emt 0:00:56]} Qxa2 {[%emt 0:01:06]} 43. Qe6 {[%emt 0:00:23]} Qa1+ {[%emt 0:00:00]} 44. Re1 {[%emt 0:00:06]} Qd4 {[%emt 0:00:00]} 45. Qxb6 {[%emt 0:00:39]} Qf4+ {[%emt 0:00:36]} 46. Kg1 {[%emt 0:00:06]} Qd4+ {[%emt 0:00:01]} 47. Kf1 {[%emt 0:00:01]} Qf4+ {[%emt 0:01:15]} 48. Kg1 {[%emt 0:00:06]} Qd6 {[%emt 0:00:31]} 49. Qb7 {[%emt 0:00:58]} Rd7 {[%emt 0:00:27]} 50. Qc8+ {[%emt 0:00:16]} Rd8 {[%emt 0:00:01]} 51. Qb7 {[%emt 0:00:07]} Rd7 {[%emt 0:01:03]} 52. Qc8+ {[%emt 0:00:11]} Rd8 {[%emt 0:00:02]} 53. Qb7 {[%emt 0:00:04]} Kg8 {[%emt 0:00:50]} 54. h3 {[%emt 0:02:14]} Kf8 {[%emt 0:00:41]} 55. Kh1 {[%emt 0:00:33]} Rb8 {[%emt 0:00:27]} 56. Qa7 {[%emt 0:02:25]} h5 {[%emt 0:00:27]} 57. Kg1 {[%emt 0:00:57]} Kg8 {[%emt 0:00:32]} 58. Qe7 {[%emt 0:03:06]} Qd4+ {[%emt 0:00:26]} 59. Kh1 {[%emt 0:00:20]} Kh7 {[%emt 0:00:29]} 60. Qa7 {[%emt 0:01:23]} Qd6 {[%emt 0:00:34]} 61. Qf7 {[%emt 0:00:59]} Kh6 {[%emt 0:00:24]} 62. Qe6 {[%emt 0:00:42]} Qg3 {[%emt 0:00:32]} 63. Qe2 {[%emt 0:00:45]} Rb2 {[%emt 0:00:37]} 64. Rf1 {[%emt 0:00:27]} Qg5 {[%emt 0:00:32]} 65. Ra1 {[%emt 0:00:42]} a5 {[%emt 0:00:19]} 66. Qd1 {[%emt 0:00:22]} Qe3 {[%emt 0:00:42]} 67. Rxa5 {[%emt 0:00:29]} Rxc2 {[%emt 0:00:13]} 68. Qxc2 {[%emt 0:00:36]} Qe1+ {[%emt 0:00:00]} 69. Kh2 {[%emt 0:00:01]} Qxa5 {[%emt 0:00:01]} 70. Qf2 {[%emt 0:00:18]} Qc7+ {[%emt 0:00:02]} 71. Kh1 {[%emt 0:00:12]} Qe5 {[%emt 0:00:08]} 72. Qf3 {[%emt 0:00:32]} Qe1+ {[%emt 0:01:52]} 73. Kh2 {[%emt 0:00:02]} Qe5+ {[%emt 0:00:05]} 74. Kh1 {[%emt 0:00:04]} h4 {[%emt 0:00:31]} 75. Qf2 {[%emt 0:00:33]} Kg5 {[%emt 0:00:21]} 76. Qd2+ {[%emt 0:00:34]} Qf4 {[%emt 0:00:28]} 77. Qe2 {[%emt 0:00:50]} g6 {[%emt 0:00:38]} 78. Qe7 {[%emt 0:00:40]} Qd4 {[%emt 0:00:30]} 79. Qa7 {[%emt 0:00:47]} Kf4 {[%emt 0:00:50]} 80. Qe7 {[%emt 0:01:11]} Qa1+ {[%emt 0:00:20]} 81. Kh2 {[%emt 0:00:01]} Qe5 {[%emt 0:00:06]} 82. Qd7 {[%emt 0:01:15]} Ke3+ {[%emt 0:00:06]} 83. Kh1 {[%emt 0:00:06]} Kf2 {[%emt 0:00:05]} 84. Qg4 {[%emt 0:01:01]} Qe1+ {[%emt 0:00:05]} 0-1

[Event "1st Jeddah Young Masters 2024"]
[Site "Jeddah"]
[Date "2024.01.27"]
[Round "6.1"]
[White "Murzin, Volodar"]
[Black "Pranav Vijay"]
[Result "1-0"]
[ECO "C78"]
[WhiteElo "2635"]
[BlackElo "2252"]
[Annotator "TA"]
[PlyCount "65"]
[EventDate "2024.01.24"]
[EventType "tourn"]
[SourceTitle "playchess.com"]
[Source "ChessBase"]
[SourceQuality "1"]
[TimeControl "5400+30"]

{[%evp 24,65,33,36,34,29,35,24,34,28,39,37,53,0,7,0,0,0,44,31,185,177,178,194,318,311,297,319,308,300,291,25,314,313,297,313,429,429,731,720,636,449,1075,1044]} 1. e4 {[%emt 0:00:04]} e5 {[%emt 0:01:20]} 2. Nf3 {[%emt 0:00:06]} Nc6 {[%emt 0:00:07]} 3. Bb5 {[%emt 0:00:04][%cal Bf1b5,Bb5a4,Ba4b3][%mdl 32]} a6 {[%emt 0:00:07]} 4. Ba4 {[%emt 0:00:04]} Nf6 {[%emt 0:00:07]} 5. O-O {[%emt 0:00:07]} b5 {[%emt 0:00:07]} 6. Bb3 {[%emt 0:00:05]} Bc5 {[%emt 0:00:06]} 7. c3 {[%emt 0:00:13]} d6 {[%emt 0:00:11]} 8. d4 {[%emt 0:00:05]} Bb6 {[%emt 0:00:06]} 9. Be3 {[%emt 0:00:08]} O-O {[%emt 0:01:17]} 10. Nbd2 {[%emt 0:00:27]} h6 {[%emt 0:02:06]} 11. h3 {[%emt 0:00:23]} Re8 {[%emt 0:00:59]} 12. Re1 {[%emt 0:00:44]} Bb7 {[%emt 0:01:38]} 13. d5 {[%emt 0:00:14]} Ne7 {[%emt 0:02:24]} 14. Bxb6 {[%emt 0:00:20]} cxb6 {[%emt 0:00:08][%cal Bc7b6,Bb6b5][%mdl 32]} 15. a4 {[%emt 0:00:13]} bxa4 {[%emt 0:01:43] White has an edge.} 16. Bxa4 {[%emt 0:00:10]} b5 {[%emt 0:00:17]} 17. Bc2 {[%emt 0:00:19]} Rc8 {[%emt 0:06:34] [#]} 18. c4 {[%emt 0:34:48]} bxc4 $11 {[%emt 0:16:55]} 19. Ba4 {[%emt 0:00:40]} Rf8 {[%emt 0:00:26]} 20. Rc1 {[%emt 0:00:29]} Nh7 {[%emt 0:05:28][%cal Bf6h7,Bh7g5,Bg5e6][%mdl 32]} 21. Nxc4 {[%emt 0:03:41][%cal Bd2c4,Bc4e5,Be5g6][%mdl 32]} f5 $2 {[%emt 0:00:23] [#]} (21... Rb8 $14) 22. Nfxe5 $1 $18 {[%emt 0:12:45][%mdl 512]} dxe5 {[%emt 0:16:40]} 23. d6 {[%emt 0:17:08]} Bxe4 {[%emt 0:10:51]} (23... Nf6 $142) 24. Nxe5 {[%emt 0:01:00] Black must now prevent Bb3+.} (24. dxe7 Qxe7 25. Bb3 Kh8 $18) (24. f3 Ng6 $18 (24... Rxc4 $2 25. dxe7 Qb6+ 26. Kh1 $18)) 24... Ng5 {[%emt 0:03:42] Hoping for ...Rxc1.} ({Wrong is} 24... Rxc1 $2 25. Bb3+ Kh8 26. dxe7 $18 (26. Qxc1 Qxd6 27. Nf7+ Rxf7 $11)) 25. dxe7 {[%emt 0:00:22]} Qxe7 {[%emt 0:00:06]} 26. Ng6 {[%emt 0:00:17][%csl LRe7,LRf8]} Qf6 {[%emt 0:04:11]} 27. Qb3+ $2 {[%emt 0:08:25]} ({White should play} 27. Nxf8 $18 Rxf8 28. Bb3+ Kh7 29. Rc3) 27... Kh7 $2 {[%emt 0:00:35][%mdl 8192]} (27... Nf7 $1 $11 {and Black stays safe.} 28. Rxc8 (28. Nxf8 Rxc1 29. Rxc1 Qg5 $15) 28... Rxc8) 28. Nxf8+ {[%emt 0:00:06]} Rxf8 {[%emt 0:00:02]} 29. h4 {[%emt 0:02:32]} Ne6 {[%emt 0:03:14][%cal Oe6f4]} 30. Rc6 {[%emt 0:01:40] White is clearly winning.} Re8 {[%emt 0:04:40]} (30... Bxc6 $142 31. Rxe6 Bxa4 32. Rxf6 Bxb3 33. Rxf8 g6) 31. Rxa6 {[%emt 0:01:07]} Re7 {[%emt 0:00:17]} 32. Bd7 {[%emt 0:01:35]} Qg6 {[%emt 0:03:24]} (32... Rxd7 $142 33. Qxe6 (33. Rxe6 Qxh4 34. Re8 Bd5 $18) 33... Qxe6 34. Rxe6 Rb7) 33. Rxe4 {[%emt 0:00:23] Weighted Error Value: White=0.35/Black=0.64.  Loses game:     	---       	Black=1      Missed win:     	White=1     	---        Mistake:       	White=1     	Black=3      Inaccurate:     	---       	Black=2      OK:         	White=9     	Black=7      Best:        	White=4     	---        Brilliant:      	White=1     	---} (33. Bxe6 $2 Qxg2#) 1-0

[Event "1st Jeddah Young Masters 2024"]
[Site "Jeddah"]
[Date "2024.01.27"]
[Round "6.2"]
[White "Francisco Guecamburu, Candela Be"]
[Black "Oro, Faustino"]
[Result "1/2-1/2"]
[ECO "B13"]
[WhiteElo "2295"]
[BlackElo "2357"]
[Annotator "RC"]
[PlyCount "26"]
[EventDate "2024.01.24"]
[EventType "tourn"]
[SourceTitle "playchess.com"]
[Source "ChessBase"]
[SourceQuality "1"]
[TimeControl "5400+30"]

1. e4 {[%emt 0:00:04]} c6 {[%emt 0:00:05]} 2. d4 {[%emt 0:00:36]} d5 {[%emt 0:01:10]} 3. exd5 {[%emt 1:31:20]} cxd5 {[%emt 0:00:23]} 4. Bf4 {[%emt 0:00:00]} Nc6 {[%emt 0:00:30]} 5. c3 {[%emt 0:00:00]} Nf6 {[%emt 0:00:48]} 6. Nd2 {[%emt 0:00:00]} Bg4 {[%emt 0:02:25]} 7. Ngf3 {[%emt 0:00:00]} e6 {[%emt 0:00:39]} 8. Qb3 {[%emt 0:00:00]} Qc8 {[%emt 0:07:41]} 9. h3 {[%emt 0:00:00]} Bf5 {[%emt 0:03:04]} 10. g4 {[%emt 0:00:00]} Be4 {[%emt 0:02:02]} 11. Be2 {[%emt 0:00:00]} h6 {[%emt 0:06:34]} 12. h4 {[%emt 0:00:00]} Bxf3 {[%emt 0:15:30]} 13. Bxf3 {[%emt 0:00:00]} Qd7 {[%emt 0:00:47]} 1/2-1/2

[Event "1st Jeddah Young Masters 2024"]
[Site "Jeddah"]
[Date "2024.01.27"]
[Round "6.3"]
[White "Klimkowski, Jan"]
[Black "Woodward, Andy"]
[Result "1/2-1/2"]
[ECO "A16"]
[WhiteElo "2531"]
[BlackElo "2501"]
[Annotator "RC"]
[PlyCount "158"]
[EventDate "2024.01.24"]
[EventType "tourn"]
[SourceTitle "playchess.com"]
[Source "ChessBase"]
[SourceQuality "1"]
[TimeControl "5400+30"]

1. c4 {[%emt 0:00:01]} Nf6 {[%emt 0:00:22]} 2. Nc3 {[%emt 0:00:07]} g6 {[%emt 0:00:13]} 3. Nf3 {[%emt 0:01:09]} Bg7 {[%emt 0:00:12]} 4. e4 {[%emt 0:00:58]} e5 {[%emt 0:00:10]} 5. Nxe5 {[%emt 0:01:51]} O-O {[%emt 0:00:17]} 6. Nf3 {[%emt 0:03:09]} Re8 {[%emt 0:00:09]} 7. Be2 {[%emt 0:01:15]} Nxe4 {[%emt 0:00:23]} 8. O-O {[%emt 0:00:07]} Nxc3 {[%emt 0:09:44]} 9. dxc3 {[%emt 0:00:35]} d6 {[%emt 0:00:27]} 10. Bg5 {[%emt 0:06:27]} Bf6 {[%emt 0:01:03]} 11. Bxf6 {[%emt 0:02:36]} Qxf6 {[%emt 0:00:13]} 12. Nd4 {[%emt 0:00:39]} c6 {[%emt 0:15:09]} 13. Qd2 {[%emt 0:08:33]} Nd7 {[%emt 0:05:49]} 14. Rad1 {[%emt 0:01:04]} Nc5 {[%emt 0:01:19]} 15. Bf3 {[%emt 0:00:22]} Be6 {[%emt 0:08:18]} 16. b3 {[%emt 0:04:38]} Rad8 {[%emt 0:01:04]} 17. Rfe1 {[%emt 0:07:09]} h5 {[%emt 0:08:51]} 18. h3 {[%emt 0:12:59]} Bc8 {[%emt 0:05:12]} 19. Re3 {[%emt 0:06:35]} Re5 {[%emt 0:01:23]} 20. b4 {[%emt 0:10:56]} Na4 {[%emt 0:06:55]} 21. Ne2 {[%emt 0:01:07]} Nb6 {[%emt 0:07:00]} 22. Rxe5 {[%emt 0:03:09]} Qxe5 {[%emt 0:00:24]} 23. c5 {[%emt 0:01:31]} Nc4 {[%emt 0:00:11]} 24. Qf4 {[%emt 0:01:34]} Be6 {[%emt 0:12:24]} 25. Rd4 {[%emt 0:04:42]} Qxf4 {[%emt 0:07:36]} 26. Nxf4 {[%emt 0:00:05]} d5 {[%emt 0:00:06]} 27. Be2 {[%emt 0:00:19]} Na3 {[%emt 0:00:14]} 28. g4 {[%emt 0:09:41]} hxg4 {[%emt 0:00:34]} 29. Nxe6 {[%emt 0:02:18]} fxe6 {[%emt 0:00:02]} 30. Rxg4 {[%emt 0:00:05]} Kf7 {[%emt 0:00:23]} 31. Bd3 {[%emt 0:00:13]} Rg8 {[%emt 0:00:26]} 32. f4 {[%emt 0:01:15]} a6 {[%emt 0:02:30]} 33. Kf2 {[%emt 0:02:00]} Nb5 {[%emt 0:01:14]} 34. c4 {[%emt 0:01:12]} Nd4 {[%emt 0:02:14]} 35. cxd5 {[%emt 0:00:51]} exd5 {[%emt 0:00:07]} 36. a3 {[%emt 0:04:20]} Nb5 {[%emt 0:02:17]} 37. Rg3 {[%emt 0:01:46]} Nd4 {[%emt 0:01:59]} 38. h4 {[%emt 0:01:38]} Nb5 {[%emt 0:01:27]} 39. Bc2 {[%emt 0:00:25]} Nd4 {[%emt 0:00:24]} 40. Bd3 {[%emt 0:00:02]} Nb5 {[%emt 0:00:05]} 41. Bc2 {[%emt 0:00:03]} Nd4 {[%emt 0:00:04]} 42. Bb1 {[%emt 0:00:31]} Nb5 {[%emt 0:01:24]} 43. Ke2 {[%emt 0:01:02]} Nd4+ {[%emt 0:00:54]} 44. Kd2 {[%emt 0:00:09]} Nb5 {[%emt 0:00:39]} 45. Bc2 {[%emt 0:00:34]} Nd4 {[%emt 0:00:12]} 46. Bb1 {[%emt 0:00:03]} Nb5 {[%emt 0:00:15]} 47. Bc2 {[%emt 0:01:13]} Nd4 {[%emt 0:00:05]} 48. Bd3 {[%emt 0:00:06]} Nb5 {[%emt 0:00:15]} 49. a4 {[%emt 0:01:05]} Nd4 {[%emt 0:01:08]} 50. Kc3 {[%emt 0:00:10]} Ne6 {[%emt 0:01:09]} 51. f5 {[%emt 0:00:57]} gxf5 {[%emt 0:00:05]} 52. Rxg8 {[%emt 0:00:02]} Kxg8 {[%emt 0:00:07]} 53. Bxf5 {[%emt 0:00:03]} Kf7 {[%emt 0:00:07]} 54. h5 {[%emt 0:00:52]} a5 {[%emt 0:00:14]} 55. h6 {[%emt 0:00:36]} axb4+ {[%emt 0:00:29]} 56. Kxb4 {[%emt 0:00:05]} Nf4 {[%emt 0:01:56]} 57. Kc3 {[%emt 0:01:15]} Ne2+ {[%emt 0:00:16]} 58. Kd3 {[%emt 0:00:09]} Nc1+ {[%emt 0:00:41]} 59. Kc2 {[%emt 0:00:20]} Na2 {[%emt 0:00:37]} 60. Kb3 {[%emt 0:00:10]} Nc1+ {[%emt 0:00:04]} 61. Kc2 {[%emt 0:00:04]} Na2 {[%emt 0:00:15]} 62. Bc8 {[%emt 0:00:32]} Nb4+ {[%emt 0:00:57]} 63. Kc3 {[%emt 0:00:09]} Na6 {[%emt 0:00:13]} 64. Kd4 {[%emt 0:00:15]} Nc7 {[%emt 0:00:06]} 65. Ke5 {[%emt 0:01:16]} Na6 {[%emt 0:00:05]} 66. Kd4 {[%emt 0:01:28]} Nc7 {[%emt 0:00:01]} 67. h7 {[%emt 0:00:57]} Kg7 {[%emt 0:00:05]} 68. Bf5 {[%emt 0:00:03]} Na6 {[%emt 0:00:29]} 69. Bd3 {[%emt 0:00:33]} Nb4 {[%emt 0:00:31]} 70. Bf5 {[%emt 0:00:06]} Na6 {[%emt 0:00:06]} 71. a5 {[%emt 0:00:30]} Nc7 {[%emt 0:00:44]} 72. Ke5 {[%emt 0:00:14]} Na6 {[%emt 0:00:04]} 73. Kd6 {[%emt 0:01:29]} d4 {[%emt 0:00:06]} 74. Be4 {[%emt 0:00:32]} Kh8 {[%emt 0:00:06]} 75. Bf5 {[%emt 0:00:05]} Kg7 {[%emt 0:00:03]} 76. Bc2 {[%emt 0:00:32]} Kh8 {[%emt 0:00:28]} 77. Ke5 {[%emt 0:00:29]} d3 {[%emt 0:00:04]} 78. Bxd3 {[%emt 0:00:05]} Nxc5 {[%emt 0:00:02]} 79. Bc2 {[%emt 0:00:22]} b6 {[%emt 0:06:04]} 1/2-1/2

[Event "1st Jeddah Young Masters 2024"]
[Site "Jeddah"]
[Date "2024.01.27"]
[Round "6.4"]
[White "Seemann, Jakub"]
[Black "Erdogmus, Yagiz Kaan"]
[Result "0-1"]
[ECO "C54"]
[WhiteElo "2439"]
[BlackElo "2524"]
[Annotator "TA"]
[PlyCount "88"]
[EventDate "2024.01.24"]
[EventType "tourn"]
[SourceTitle "playchess.com"]
[Source "ChessBase"]
[SourceQuality "1"]
[TimeControl "5400+30"]

{[%evp 34,88,34,16,23,25,35,26,26,35,37,38,38,38,85,75,87,71,109,0,76,0,100,65,91,8,12,14,19,14,66,0,49,17,17,13,0,15,0,-171,-185,-193,-196,-191,-206,-197,-191,-221,0,-164,0,-141,-49,-314,-307,-467,-453]} 1. e4 {[%emt 0:00:22]} e5 {[%emt 0:00:03]} 2. Nf3 {[%emt 0:00:07]} Nc6 {[%emt 0:00:02]} 3. Bc4 {[%emt 0:00:06]} Nf6 {[%emt 0:00:06]} 4. d3 {[%emt 0:00:04]} Bc5 {[%emt 0:00:30]} 5. c3 {[%emt 0:00:13]} d6 {[%emt 0:02:16]} 6. O-O {[%emt 0:00:21]} h6 {[%emt 0:03:22]} 7. Re1 {[%emt 0:01:15]} O-O {[%emt 0:01:01]} 8. Nbd2 {[%emt 0:02:03]} a6 {[%emt 0:05:44]} 9. a4 {[%emt 0:00:24]} Ba7 {[%emt 0:02:20]} 10. b4 {[%emt 0:01:02]} Ne7 {[%emt 0:04:42]} 11. Nf1 {[%emt 0:03:25]} Ng6 {[%emt 0:07:57]} 12. Ng3 {[%emt 0:02:22]} Be6 {[%emt 0:08:01]} 13. Bxe6 {[%emt 0:01:44]} fxe6 {[%emt 0:00:02]} 14. d4 {[%emt 0:01:18]} Kh8 {[%emt 0:04:00]} 15. h3 {[%emt 0:03:15]} Nd7 {[%emt 0:05:06]} 16. Be3 {[%emt 0:02:34]} Qf6 {[%emt 0:01:14]} 17. Ra2 {[%emt 0:16:41]} Qf7 {[%emt 0:15:34]} 18. a5 {[%emt 0:08:44]} Rad8 {[%emt 0:09:43]} 19. Rd2 {[%emt 0:00:48]} Qe8 {[%emt 0:02:41]} 20. h4 {[%emt 0:09:20]} Nf6 {[%emt 0:09:15]} 21. h5 {[%emt 0:14:41]} exd4 $1 {[%emt 0:01:25]} 22. cxd4 {[%emt 0:00:41]} Ne7 {[%emt 0:00:04]} 23. Nh4 {[%emt 0:02:55]} Qb5 {[%emt 0:02:08]} (23... Kg8 $14 {ist überlegen.}) 24. d5 $16 {[%emt 0:12:55]} Bxe3 {[%emt 0:00:25]} 25. Rxe3 {[%emt 0:00:05]} e5 {[%emt 0:04:44]} 26. Qb3 {[%emt 0:00:13]} (26. Rc3 $1 $16 {[%cal Rc3c7]}) 26... Qe8 {[%emt 0:01:50]} (26... Qd7 $11) 27. Qd1 {[%emt 0:01:22]} (27. Rc2 $16) 27... Kg8 {[%emt 0:02:11]} (27... Qb5 $1 $11) 28. Rc2 {[%emt 0:00:42]} Qa4 {[%emt 0:01:30]} 29. Ngf5 {[%emt 0:03:32]} (29. Ng6 $16 Nxg6 30. hxg6) 29... Nxf5 $1 $11 {[%emt 0:02:40]} 30. Nxf5 {[%emt 0:00:01]} Rd7 $1 {[%emt 0:00:43]} 31. Qc1 {[%emt 0:02:43]} Rff7 {[%emt 0:02:12]} ({Besser ist} 31... Kh7 $11) 32. Rg3 {[%emt 0:05:45]} (32. Ng3 $1 $14) 32... Kf8 {[%emt 0:00:19]} (32... Kh7 $11) 33. Rg6 {[%emt 0:00:01]} Nxh5 {[%emt 0:02:18]} 34. Nxh6 {[%emt 0:05:10]} Rf6 $1 {[%emt 0:00:24]} (34... gxh6 $6 35. Qxh6+ Rg7 36. Rc1 Qxb4 37. Qh8+ (37. Qxh5 Rxg6 38. Qxg6 Rf7 $14) 37... Kf7 38. Qxh5 Rxg6 39. Qf5+ Ke7 40. Qxg6 $16) 35. Rxf6+ {[%emt 0:00:32]} Nxf6 {[%emt 0:00:01]} 36. Rc3 $2 {[%emt 0:00:30]} (36. Nf5 $11 {und Weiss ist OK.}) 36... Qxb4 $19 {[%emt 0:01:09]} (36... gxh6 $2 37. Ra3 $18) 37. Rf3 {[%emt 0:00:22]} Qxe4 $1 {[%emt 0:00:21]} 38. Qg5 {[%emt 0:00:21]} Qb1+ $1 {[%emt 0:00:47]} (38... gxh6 39. Qxf6+ Kg8 40. Qe6+ (40. Qxh6 Qxf3 41. gxf3 Re7 $18) 40... Kh7 41. Qxd7+ Kg6 42. Rg3+ (42. Qxc7 Qxd5 43. Rg3+ Kf5 44. Qd7+ Kf6 45. Qg7+ Ke6 46. Qg8+ Kf6 47. Qxd5 h5) 42... Kh5 43. Qh3+ (43. Qxc7 Qe1+ 44. Kh2 Qxf2 45. Qxd6 Qxg3+ 46. Kxg3 Kg5 47. Qxe5+ Kg6) 43... Qh4 44. Qf5+) 39. Kh2 {[%emt 0:00:01]} Qh7 $1 {[%emt 0:00:33]} (39... gxh6 40. Qxf6+ Kg8 41. Qe6+ (41. Qxh6 Rg7 42. Qe6+ Kh8 43. Rf8+ Kh7 44. Qh3+ Kg6 45. Qg4+ Kh6 46. Qh4+ Kg6 47. Rf6#) 41... Kh7 42. Qxd7+ Kg8 43. Qe6+ (43. Qxc7 Qg6 44. Rg3 Qg5 45. Rxg5+ hxg5 46. Kg3 Kf8 47. Kg4 Ke8 48. Kxg5 e4 49. Kf6 Kf8 50. Qf7#) 43... Kh8 44. Qxh6+ Qh7 45. Rf8#) 40. Rh3 {[%emt 0:00:01] [#]} Qe4 $2 {[%emt 0:00:13]} (40... gxh6 $2 41. Qxf6+ Ke8 42. Rxh6 $18) (40... Nxd5 $1 $19 {[%cal Od5f4] ...Nf4! wäre nun fies.} 41. Nf5 Qg8) 41. Rh4 $2 {[%emt 0:01:05]} (41. Rf3 $1 $11 Qh7 (41... gxh6 42. Qxf6+ Kg8 43. Qe6+ Kh7 44. Qxd7+ Kg6 45. Qe6+ Kg5 46. Qf6+ Kg4 47. Qg7+ Kh5 48. Rh3+) 42. Rh3) 41... Qh7 $2 {[%emt 0:00:47]} (41... gxh6 42. Qxf6+ Rf7 43. Qxh6+ Rg7 44. Rxe4 Kf7 45. Qe6+ Kf8 46. Rh4) (41... Qxd5 $19 {[%cal Of8e8] ...Ke8! ist eine echte Drohung.} 42. Ng4 Nxg4+ (42... Qxa5 43. Nxf6 Kf7 44. Nxd7 Qa2 45. Rh7 Ke6 46. Qxg7 Qxf2 47. Qg8+ Kf5 48. Rf7+ Ke6 49. Rxf2+) 43. Qxg4 Qf7) 42. Nf5 {[%emt 0:01:10] [#]} (42. Rh3 $11 {hält das Gleichgewicht.}) 42... Qg8 {[%emt 0:00:06]} ({Günstiger ist} 42... Ne4 $1 $17 {[%cal Re4g5]} 43. Rxh7 Nxg5 44. Rh8+ Kf7) 43. Qg3 $2 {[%emt 0:00:28][%mdl 8192]} (43. Ne3 $1 $15) 43... g5 $19 {[%emt 0:00:39]} (43... Nxd5 44. Qf3 Nf6 (44... Ke8 45. Qh3 $14) 45. Qxb7 $19) (43... Qxd5 44. Rh8+ Ng8 45. Qg4 $11) 44. Rb4 {[%emt 0:00:34]} (44. Rh3 $142 g4 (44... Qxd5 $2 {verliert.} 45. Qxg5 Nh7 46. Qh6+ Ke8 47. Ng7+ Rxg7 48. Qxg7 $18) (44... Nxd5 $2 45. Qb3 $19) (44... Rh7 $2 45. Kg1 $19) 45. Nh6) 44... Qh7+ {[%emt 0:00:09]} (44... Qxd5 $2 45. Qxg5 Rh7+ (45... Qxa5 46. Qxf6+ Ke8 47. Qe6+ Kf8 48. Rh4) 46. Nh6 $19) (44... Nxd5 45. Rxb7 Qh7+ 46. Qh3 Qxh3+ 47. Kxh3 $17) 0-1